bitfinex-derivatives/quotes_SOLF0:USTF0_20250613
["timestamp","ask_amount","ask_price","bid_price","bid_amount"]
[1749805412618,10.01863964,144.78,144.65,41.44931982]
[1749805412814,5.00931982,144.71,144.68,2.2663]
[1749805413208,6.9086,144.69,144.68,2.2663]
[1749805413812,12.38150111,144.94,144.69,27.635]
[1749805414115,5.00931982,144.82,144.75,6.905]
[1749805414320,6.904,144.79,144.76,36.44]
[1749805414517,5.00931982,144.82,144.76,36.44]
[1749805414720,0.05011471,144.8,144.78,0.04910858]
[1749805414922,6.95371471,144.8,144.78,0.04910858]
[1749805416530,6.9038,144.79,144.78,0.04910858]
[1749805418829,11.91311982,144.79,144.78,0.04910858]
[1749805420228,10.43465044,144.79,144.73,36.38]
[1749805420432,4.1854,144.82,144.73,43.2866]
[1749805420634,5.00931982,144.76,144.73,43.2866]
[1749805421023,5.05619328,144.76,144.73,43.33371842]
[1749805421232,0.04687346,144.76,144.74,6.9061]
[1749805421437,0.04687346,144.76,144.73,36.42711842]
[1749805421733,6.9062,144.74,144.73,36.42711842]
[1749805421928,6.9062,144.74,144.73,0.04711842]
[1749805423028,11.91551982,144.74,144.73,0.04711842]
[1749805423727,6.9062,144.74,144.73,0.04711842]
[1749805424835,11.91511982,144.75,144.73,0.04711842]
[1749805425032,0.04687346,144.76,144.73,0.04711842]
[1749805425938,0.04687346,144.76,144.74,6.9062]
[1749805426137,0.04687346,144.76,144.73,0.04711842]
[1749805426435,0.04687346,144.76,144.75,6.9057]
[1749805426738,6.904,144.79,144.74,50.64471982]
[1749805426929,6.904,144.79,144.74,45.6354]
[1749805427236,5.00931982,144.79,144.74,45.6354]
[1749805427539,0.04676141,144.78,144.74,45.6354]
[1749805428642,6.95106141,144.78,144.75,6.9054]
[1749805432837,5.05608123,144.78,144.74,43.285]
[1749805433237,5.00931982,144.76,144.73,0.04711842]
[1749805433434,6.9062,144.74,144.73,0.04711842]
[1749805434047,0.04854348,144.75,144.73,0.04711842]
[1749805435148,0.04854348,144.75,144.73,6.95351842]
[1749805435345,6.95424348,144.75,144.73,6.95351842]
[1749805435952,0.04854348,144.75,144.74,6.9062]
[1749805438652,5.00931982,144.79,144.74,6.9062]
[1749805438852,6.9045,144.78,144.75,6.9055]
[1749805439058,5.00931982,144.79,144.73,0.04711842]
[1749805439240,6.905,144.77,144.75,6.9057]
[1749805439549,5.00931982,144.79,144.75,6.9057]
[1749805439753,0.05071987,144.78,144.75,6.9057]
[1749805439945,6.95541987,144.78,144.75,6.9057]
[1749805440344,0.05071987,144.78,144.74,6.9059]
[1749805440550,6.9049,144.77,144.74,6.9059]
[1749805440742,0.05071987,144.78,144.74,6.9059]
[1749805441150,0.05071987,144.78,144.73,0.04711842]
[1749805441655,6.9053,144.76,144.73,6.95341842]
[1749805442050,5.06003969,144.78,144.73,6.95341842]
[1749805442255,6.9055,144.76,144.73,6.95341842]
[1749805443249,6.9058,144.75,144.73,6.95341842]
[1749805443453,5.00931982,144.74,144.73,0.04711842]
[1749805443949,11.91551982,144.74,144.73,0.04711842]
[1749805444149,6.9062,144.74,144.73,0.04711842]
[1749805444758,6.9081,144.7,144.68,45.5155]
[1749805445151,6.9078,144.71,144.68,45.5155]
[1749805445550,0.05049379,144.71,144.68,45.56151312]
[1749805445755,0.05049379,144.71,144.69,6.9085]
[1749805446158,6.9055,144.76,144.69,5.01077672]
[1749805446347,5.01077672,144.77,144.72,6.9069]
[1749805446749,6.9055,144.76,144.72,6.9069]
[1749805446954,5.01077672,144.77,144.72,6.9069]
[1749805447150,5.01077672,144.77,144.73,0.04443206]
[1749805447457,6.95830011,144.76,144.73,0.04443206]
[1749805448558,6.9057,144.75,144.73,0.04443206]
[1749805448855,0.05280011,144.76,144.73,6.95103206]
[1749805449253,6.95820011,144.76,144.73,6.95103206]
[1749805450268,6.9058,144.75,144.73,0.04443206]
[1749805453251,6.95820011,144.76,144.73,6.95103206]
[1749805453456,0.05280011,144.76,144.73,0.04443206]
[1749805453661,6.9057,144.75,144.73,0.04443206]
[1749805453857,5.01075018,144.75,144.73,0.04443206]
[1749805454761,11.91685018,144.75,144.73,0.04443206]
[1749805455356,5.01075018,144.75,144.73,0.04443206]
[1749805455759,6.9062,144.74,144.73,0.04443206]
[1749805455958,5.01075018,144.75,144.73,0.04443206]
[1749805456562,11.91665018,144.75,144.73,0.04443206]
[1749805457057,0.05280011,144.76,144.74,6.9062]
[1749805457658,36.36,144.81,144.75,5.01075018]
[1749805457855,5.41091879,144.8,144.75,5.01075018]
[1749805458051,6.9036,144.8,144.75,5.01075018]
[1749805458258,41.37075018,144.82,144.75,5.01075018]
[1749805458458,5.41246746,144.81,144.75,5.0054042]
[1749805458759,0.05078785,144.79,144.77,0.04736427]
[1749805459157,0.05078785,144.79,144.78,6.9039]
[1749805459359,0.05078785,144.79,144.77,0.04736427]
[1749805459859,0.05078785,144.79,144.78,6.9043]
[1749805465070,6.4664,144.86,144.83,6.9019]
[1749805465071,2.1738,144.86,144.83,6.9019]
[1749805465271,5.42471284,144.85,144.83,6.9019]
[1749805465469,5.0054042,144.87,144.8,41.3654042]
[1749805465660,6.9012,144.85,144.82,6.9021]
[1749805466067,6.94711895,144.85,144.82,6.94579552]
[1749805467169,11.9072561,144.83,144.82,0.04369552]
[1749805467368,5.0053561,144.83,144.8,36.36]
[1749805467570,6.9036,144.8,144.77,43.2645]
[1749805467870,5.0053561,144.79,144.77,36.36]
[1749805468069,5.0053561,144.79,144.74,4.5919]
[1749805468070,5.0053561,144.79,144.74,38.6142]
[1749805468373,5.0053561,144.77,144.75,0.04601624]
[1749805468766,6.9052,144.76,144.75,0.04601624]
[1749805469367,6.9072,144.72,144.71,36.36]
[1749805469674,5.0053561,144.73,144.68,38.6068]
[1749805470470,5.01338694,144.69,144.63,36.36]
[1749805470669,5.05957128,144.67,144.65,0.0521156]
[1749805470869,0.05243092,144.67,144.65,0.05283777]
[1749805471170,5.06835368,144.67,144.65,0.05283777]
[1749805471568,0.05243092,144.67,144.65,0.05283777]
[1749805471964,0.05243092,144.67,144.65,6.95783777]
[1749805472164,5.01592276,144.74,144.66,5.01592276]
[1749805472364,41.37592276,144.76,144.69,5.01592276]
[1749805472565,6.9061,144.75,144.69,41.37592276]
[1749805473171,0.04808898,144.73,144.71,0.04801682]
[1749805475070,0.04808898,144.73,144.72,6.9071]
[1749805478574,36.36,144.79,144.75,6.9055]
[1749805478778,36.36,144.79,144.72,8.58800925]
[1749805478980,36.32,144.82,144.73,36.36]
[1749805479277,8.58800925,144.84,144.76,8.58800925]
[1749805479575,8.58800925,144.84,144.74,2.288]
[1749805479576,0.04460634,144.81,144.79,0.05227014]
[1749805482375,0.04460634,144.81,144.79,6.95607014]
[1749805483378,0.04460634,144.81,144.79,0.05227014]
[1749805483682,0.04460634,144.81,144.8,6.9033]
[1749805484075,36.32,144.88,144.83,6.9017]
[1749805484272,13.99338943,144.87,144.77,44.90087386]
[1749805484477,15.48097386,144.87,144.77,44.90087386]
[1749805484674,2.56590518,144.86,144.83,6.9016]
[1749805484881,15.48097386,144.87,144.83,6.9016]
[1749805485184,9.51689797,144.86,144.84,0.04360208]
[1749805485384,6.950606,144.86,144.84,0.04360208]
[1749805486174,0.050006,144.86,144.84,0.04360208]
[1749805486472,0.050006,144.86,144.85,6.9009]
[1749805486673,44.90087386,144.93,144.85,36.32]
[1749805486982,2.56569809,144.92,144.89,6.8989]
[1749805487287,10.83137386,144.95,144.85,44.90087386]
[1749805487678,0.0455276,144.91,144.89,0.04421924]
[1749805489589,6.8986,144.9,144.89,0.04421924]
[1749805489888,0.0455276,144.91,144.89,0.04421924]
[1749805490289,6.8986,144.9,144.89,0.04421924]
[1749805496704,6.8986,144.9,144.89,1.924e-05]
[1749805496892,9.49468457,144.9,144.89,1.924e-05]
[1749805497202,6.8986,144.9,144.89,1.924e-05]
[1749805497587,8.62640146,144.91,144.82,2.1856]
[1749805497893,8.58087386,144.86,144.82,2.1856]
[1749805498096,6.9036,144.8,144.78,438.5481]
[1749805498388,8.58087386,144.84,144.78,40.8481]
[1749805498587,6.9029,144.81,144.8,0.04425538]
[1749805498788,8.62969331,144.82,144.78,36.3]
[1749805499195,6.9038,144.79,144.78,36.3]
[1749805499593,6.9038,144.79,144.75,43.2053]
[1749805499789,0.04880177,144.78,144.76,0.04725049]
[1749805500497,6.95330177,144.78,144.76,0.04725049]
[1749805500697,0.04880177,144.78,144.76,0.04725049]
[1749805500900,6.9048,144.77,144.76,0.04725049]
[1749805509899,0.04880177,144.78,144.76,0.04725049]
[1749805510394,16.0712,144.86,144.77,36.28]
[1749805510395,6.9035,144.8,144.77,36.28]
[1749805510597,47.1288242,144.86,144.78,8.5792242]
[1749805510799,44.8592242,144.86,144.78,10.8031242]
[1749805511596,0.05185038,144.83,144.81,0.04721883]
[1749805511998,6.9024,144.82,144.81,0.04721883]
[1749805512795,6.95395038,144.83,144.81,0.04721883]
[1749805514301,6.9024,144.82,144.81,0.04721883]
[1749805517518,0.05185038,144.83,144.81,0.04721883]
[1749805517811,0.05185038,144.83,144.81,36.32721883]
[1749805518008,0.05185038,144.83,144.82,8.5792242]
[1749805518214,10.8488242,144.91,144.82,8.5792242]
[1749805518411,2.2696,144.91,144.84,8.5792242]
[1749805518604,397.64,144.94,144.86,15.4793242]
[1749805518807,44.8592242,144.95,144.86,51.7593242]
[1749805519204,0.05306837,144.92,144.89,0.04428771]
[1749805520212,6.8986,144.9,144.89,0.04428771]
[1749805521009,6.8983,144.91,144.89,0.04428771]
[1749805521214,0.05306837,144.92,144.89,0.04428771]
[1749805521606,6.8986,144.9,144.89,0.04428771]
[1749805522209,15.4778242,144.9,144.89,8.771e-05]
[1749805524010,6.8986,144.9,144.89,8.771e-05]
[1749805524521,6.9014,144.84,144.83,36.26]
[1749805526916,6.95141486,144.85,144.83,36.26]
[1749805527314,0.05021486,144.85,144.83,36.26]
[1749805527514,6.9014,144.84,144.83,36.26]
[1749805528216,6.9019,144.83,144.82,0.04865517]
[1749805530522,6.9019,144.83,144.82,5.517e-05]
[1749805530923,43.1619,144.83,144.82,5.517e-05]
[1749805531920,6.9057,144.75,144.74,40.7662]
[1749805532128,6.9057,144.75,144.74,36.26]
[1749805532522,6.9065,144.74,144.71,51.74922634]
[1749805533032,6.95183095,144.74,144.72,6.907]
[1749805533732,0.04533095,144.74,144.72,6.907]
[1749805533934,0.04533095,144.74,144.71,58.70107152]
[1749805534521,0.04533095,144.74,144.72,13.8122]
[1749805536236,8.5868134,144.81,144.73,8.5868134]
[1749805536553,2.1947,144.84,144.77,8.5868134]
[1749805536743,36.28,144.85,144.77,8.5868134]
[1749805537139,6.9027,144.82,144.77,8.5868134]
[1749805537446,0.05055581,144.81,144.78,0.05189481]
[1749805537850,6.95345581,144.81,144.78,0.05189481]
[1749805538646,6.9034,144.8,144.78,0.05189481]
[1749805538857,0.05055581,144.81,144.78,0.05189481]
[1749805539059,0.05055581,144.81,144.78,6.95619481]
[1749805539245,6.95375581,144.81,144.78,6.95619481]
[1749805540256,0.05055581,144.81,144.78,0.05189481]
[1749805540446,8.63736921,144.81,144.78,0.05189481]
[1749805540647,6.9038,144.79,144.78,0.05189481]
[1749805551752,0.05055581,144.81,144.78,15.54370821]
[1749805551957,36.24,144.89,144.8,8.5868134]
[1749805552155,36.24,144.89,144.79,45.5409]
[1749805552156,8.5868134,144.91,144.82,8.5868134]
[1749805552349,8.5868134,144.91,144.79,47.731]
[1749805552350,36.24,144.92,144.84,8.57036261]
[1749805552550,10.84046261,144.93,144.87,6.9]
[1749805552750,2.2701,144.93,144.86,15.47536261]
[1749805552958,0.04868905,144.91,144.88,0.05159408]
[1749805553347,6.8989,144.9,144.88,0.05159408]
[1749805554557,0.04868905,144.91,144.88,0.05159408]
[1749805555054,6.8991,144.89,144.88,0.05159408]
[1749805555252,0.04868905,144.91,144.88,0.05159408]
[1749805556163,15.46946261,144.89,144.88,9.408e-05]
[1749805556750,6.8991,144.89,144.88,9.408e-05]
[1749805558663,0.04868905,144.91,144.88,9.408e-05]
[1749805559060,6.94698905,144.91,144.88,9.408e-05]
[1749805559261,0.04868905,144.91,144.88,9.408e-05]
[1749805559662,0.04868905,144.91,144.88,6.90509408]
[1749805559858,2.2701,144.97,144.89,8.57378952]
[1749805560058,2.2701,144.97,144.89,10.98018952]
[1749805560466,6.897,144.94,144.9,6.8982]
[1749805560764,6.897,144.94,144.91,36.22]
[1749805560964,6.94839905,144.94,144.91,36.27215274]
[1749805561171,6.8972,144.93,144.91,36.27215274]
[1749805561467,0.05139905,144.94,144.91,36.27215274]
[1749805561866,47.08188952,145.01,144.93,8.57378952]
[1749805562159,47.08188952,145.01,144.93,15.47058952]
[1749805562368,8.57378952,144.99,144.93,36.22]
[1749805562759,6.8965,144.95,144.93,36.22]
[1749805562959,6.8965,144.95,144.93,36.2680609]
[1749805563560,6.8967,144.94,144.93,36.2680609]
[1749805563962,6.8964,144.95,144.93,36.2680609]
[1749805564265,0.05214717,144.97,144.93,36.2680609]
[1749805564467,6.8965,144.95,144.93,36.2680609]
[1749805565067,6.8967,144.94,144.93,36.2680609]
[1749805565454,6.8967,144.94,144.93,0.0480609]
[1749805568465,0.05214717,144.97,144.93,0.0480609]
[1749805569572,6.8967,144.94,144.93,0.0480609]
[1749805569776,6.8967,144.94,144.93,6.09e-05]
[1749805569965,8.57378952,144.95,144.87,36.18]
[1749805570161,8.57378952,144.92,144.87,36.18]
[1749805570562,6.8993,144.89,144.87,36.18]
[1749805570760,8.57378952,144.92,144.87,36.18]
[1749805570963,8.57378952,144.92,144.88,0.0498598]
[1749805570964,0.04460461,144.91,144.88,0.0498598]
[1749805571159,6.8991,144.89,144.88,0.0498598]
[1749805572967,6.8989,144.9,144.88,0.0498598]
[1749805573166,0.04460461,144.91,144.88,0.0498598]
[1749805573865,17.14757904,144.9,144.79,36.18]
[1749805574170,8.57378952,144.82,144.78,38.4594]
[1749805574564,8.57378952,144.82,144.76,2.254]
[1749805574967,6.9039,144.79,144.78,0.04466883]
[1749805575565,6.9039,144.79,144.78,6.883e-05]
[1749805577768,0.04997141,144.8,144.78,6.883e-05]
[1749805579377,6.9039,144.79,144.78,6.883e-05]
[1749805580366,15.47768952,144.79,144.78,6.883e-05]
[1749805582977,6.9067,144.73,144.72,36.18]
[1749805583278,8.57378952,144.76,144.72,36.18]
[1749805583982,0.04823026,144.75,144.73,0.04564361]
[1749805584171,6.9066,144.74,144.73,0.04564361]
[1749805585271,6.9066,144.74,144.66,8.57378952]
[1749805585272,11.18191665,144.74,144.66,2.197]
[1749805585477,36.2,144.73,144.66,2.197]
[1749805585675,6.9081,144.71,144.66,10.79173681]
[1749805586074,0.05212507,144.7,144.68,8.59473681]
[1749805586283,8.59473681,144.76,144.69,38.5232]
[1749805586580,2.5851269,144.75,144.71,6.9073]
[1749805586774,8.59473681,144.77,144.71,6.9073]
[1749805586974,2.58495721,144.76,144.69,47.11793681]
[1749805587170,8.64010262,144.74,144.71,7.162e-05]
[1749805587483,6.908,144.71,144.65,8.59473681]
[1749805587876,44.79473681,144.74,144.66,6.9099]
[1749805588075,2.58470504,144.73,144.66,6.9099]
[1749805588285,0.04990659,144.71,144.68,0.0522473]
[1749805588976,6.9082,144.7,144.68,0.0522473]
[1749805589285,0.04990659,144.71,144.68,0.0522473]
[1749805589781,6.9086,144.7,144.68,0.0522473]
[1749805590182,0.04990659,144.71,144.68,0.0522473]
[1749805590778,6.9081,144.7,144.68,0.0522473]
[1749805591085,0.04990659,144.71,144.68,0.0522473]
[1749805591287,6.9086,144.69,144.68,0.0522473]
[1749805591988,6.9101,144.66,144.65,36.22]
[1749805592986,6.9105,144.65,144.64,0.05218555]
[1749805594283,0.04934371,144.67,144.64,0.05218555]
[1749805594874,6.9103,144.66,144.64,0.05218555]
[1749805597381,0.04934371,144.67,144.64,0.05218555]
[1749805598589,8.59883775,144.66,144.64,0.05218555]
[1749805598887,6.9105,144.65,144.64,0.05218555]
[1749805600992,8.59883775,144.66,144.59,36.2]
[1749805601188,8.59883775,144.63,144.56,43.1376]
[1749805601582,6.9136,144.59,144.56,50.0522]
[1749805601782,6.9136,144.59,144.56,43.1376]
[1749805601982,6.96362818,144.59,144.56,43.19036214]
[1749805602684,6.96362818,144.59,144.56,50.10496214]
[1749805602881,0.05002818,144.59,144.56,43.19036214]
[1749805603189,0.05002818,144.59,144.57,6.9141]
[1749805603593,0.05002818,144.59,144.56,50.09236214]
[1749805604183,36.2,144.66,144.57,8.59883775]
[1749805604487,36.22,144.69,144.61,15.50083775]
[1749805604690,6.9104,144.66,144.63,6.9114]
[1749805604884,8.59883775,144.7,144.63,8.59883775]
[1749805605086,8.59883775,144.7,144.63,10.96873775]
[1749805605283,6.9624133,144.68,144.65,6.96098008]
[1749805605483,50.0308,144.76,144.67,8.59883775]
[1749805605683,58.62963775,144.76,144.67,8.59883775]
[1749805605886,44.81883775,144.76,144.67,8.59883775]
[1749805606687,0.04538344,144.73,144.7,0.04673129]
[1749805606986,2.55528067,144.72,144.7,0.04673129]
[1749805607183,0.04538344,144.73,144.7,0.04673129]
[1749805607590,2.55632539,144.72,144.7,0.04673129]
[1749805607789,2.55690035,144.71,144.7,0.04673129]
[1749805608179,0.04538344,144.73,144.7,0.04673129]
[1749805608388,2.55775392,144.72,144.7,0.04673129]
[1749805608688,0.04538344,144.73,144.7,8.64556904]
[1749805608893,6.9046,144.78,144.72,8.59883775]
[1749805609191,8.59883775,144.81,144.73,36.2]
[1749805609393,6.9048,144.78,144.74,6.9061]
[1749805609585,2.5578005,144.77,144.74,6.9061]
[1749805609786,2.55764819,144.76,144.74,6.9061]
[1749805609986,0.04746198,144.77,144.74,6.95140409]
[1749805610194,2.55772101,144.76,144.74,6.95140409]
[1749805610393,6.95236198,144.77,144.74,6.95140409]
[1749805610685,0.04746198,144.77,144.74,6.95140409]
[1749805611085,0.04746198,144.77,144.75,6.9056]
[1749805611482,0.04746198,144.77,144.74,0.04530409]
[1749805611795,142.7439152,144.91,144.74,0.04530409]
[1749805611796,44.79883775,144.85,144.76,8.59883775]
[1749805611979,2.49546245,144.84,144.77,36.2]
[1749805612179,44.79883775,144.85,144.78,8.59883775]
[1749805612180,2.49546245,144.83,144.78,8.59883775]
[1749805612393,2.49546245,144.82,144.78,8.59883775]
[1749805612588,8.59883775,144.87,144.79,2.3181]
[1749805612783,6.95419993,144.84,144.82,0.0448251]
[1749805612980,2.49552273,144.83,144.82,0.0448251]
[1749805613287,2.49555863,144.83,144.82,0.0448251]
[1749805613480,6.9019,144.83,144.82,0.0448251]
[1749805613687,2.49559726,144.83,144.82,0.0448251]
[1749805613892,0.05249993,144.84,144.82,8.64366285]
[1749805614485,0.05249993,144.84,144.82,0.0448251]
[1749805615597,6.95429993,144.84,144.82,0.0448251]
[1749805616382,0.05249993,144.84,144.82,0.0448251]
[1749805616787,6.9019,144.83,144.82,0.0448251]
[1749805616989,9.43778438,144.83,144.82,0.0448251]
[1749805617492,6.9019,144.83,144.82,0.0448251]
[1749805618183,8.65133768,144.84,144.77,36.18]
[1749805618384,8.59883775,144.82,144.77,36.18]
[1749805618789,6.9043,144.78,144.77,36.18]
[1749805618982,6.9043,144.78,144.74,40.6695]
[1749805619296,0.04907731,144.77,144.75,0.04906412]
[1749805620490,6.95387731,144.77,144.75,0.04906412]
[1749805620697,0.04907731,144.77,144.75,0.04906412]
[1749805621083,6.9053,144.76,144.75,0.04906412]
[1749805621487,8.59883775,144.76,144.72,36.18]
[1749805621689,8.59883775,144.74,144.65,8.59883775]
[1749805621890,8.59883775,144.74,144.68,36.18]
[1749805622191,6.9078,144.71,144.68,36.18]
[1749805622600,0.05068719,144.71,144.68,36.23107925]
[1749805622803,6.95868719,144.71,144.68,36.23107925]
[1749805623195,0.05068719,144.71,144.68,43.14017925]
[1749805623788,2.2232,144.79,144.68,43.14017925]
[1749805623789,47.00203775,144.79,144.69,8.59883775]
[1749805623994,38.4032,144.79,144.71,8.59883775]
[1749805624199,6.9051,144.77,144.73,6.9067]
[1749805624395,8.59883775,144.8,144.72,36.18]
[1749805624596,6.9063,144.74,144.72,36.18]
[1749805624806,0.05157947,144.74,144.72,36.2301492]
[1749805625301,8.65041722,144.74,144.72,0.0501492]
[1749805625695,6.9067,144.73,144.72,0.0501492]
[1749805628098,6.9067,144.73,144.72,4.92e-05]
[1749805628902,6.95797947,144.74,144.72,4.92e-05]
[1749805629102,0.05157947,144.74,144.72,4.92e-05]
[1749805629398,0.05157947,144.74,144.72,36.1800492]
[1749805629899,0.05157947,144.74,144.72,43.0869492]
[1749805630298,0.05157947,144.74,144.72,36.1800492]
[1749805630694,0.05157947,144.74,144.72,4.92e-05]
[1749805630899,6.9067,144.73,144.72,4.92e-05]
[1749805631103,0.05157947,144.74,144.72,4.92e-05]
[1749805632803,0.05157947,144.74,144.72,6.9070492]
[1749805632996,0.05157947,144.74,144.72,4.92e-05]
[1749805633898,6.95807947,144.74,144.72,4.92e-05]
[1749805634504,0.05157947,144.74,144.72,4.92e-05]
[1749805634803,0.05157947,144.74,144.73,36.18]
[1749805636706,0.05157947,144.74,144.73,43.0867]
[1749805638608,36.18,144.8,144.73,44.7715812]
[1749805638805,2.3789,144.82,144.74,2.2847]
[1749805639110,6.9047,144.78,144.74,9.1906]
[1749805639611,0.04413197,144.77,144.75,0.04684337]
[1749805640914,0.04413197,144.77,144.75,6.95244337]
[1749805641412,0.04413197,144.77,144.75,0.04684337]
[1749805642912,6.94923197,144.77,144.75,0.04684337]
[1749805643309,0.04413197,144.77,144.75,6.95254337]
[1749805643502,0.04413197,144.77,144.75,0.04684337]
[1749805644309,0.04413197,144.77,144.76,6.9053]
[1749805644612,0.04413197,144.77,144.75,0.04684337]
[1749805645607,6.94903197,144.77,144.75,0.04684337]
[1749805646307,6.9053,144.76,144.75,0.04684337]
[1749805649506,8.5880446,144.76,144.7,43.082]
[1749805649905,8.5880446,144.74,144.7,43.082]
[1749805650307,6.9077,144.71,144.7,43.082]
[1749805650612,0.04947623,144.72,144.69,6.95240765]
[1749805650916,6.9082,144.7,144.69,0.05040765]
[1749805652013,6.9099,144.67,144.65,6.9103]
[1749805652815,6.9099,144.67,144.64,43.0908]
[1749805653021,6.9099,144.67,144.64,43.1335477]
[1749805653022,0.04904004,144.67,144.64,43.1335477]
[1749805653222,0.04904004,144.67,144.64,36.2315477]
[1749805653529,6.9101,144.66,144.64,36.2315477]
[1749805654224,6.9106,144.65,144.64,36.2315477]
[1749805654428,6.9106,144.65,144.64,0.0515477]
[1749805662729,6.9103,144.66,144.64,0.0515477]
[1749805663230,4.6182,144.74,144.65,36.18]
[1749805663231,36.18,144.74,144.65,36.18]
[1749805663433,36.18,144.77,144.66,6.902]
[1749805663937,6.9065,144.74,144.71,6.9074]
[1749805664140,6.9065,144.74,144.71,43.0874]
[1749805664436,0.04827193,144.74,144.71,0.05019028]
[1749805665036,6.9072,144.72,144.71,0.05019028]
[1749805666229,6.9069,144.73,144.71,0.05019028]
[1749805666929,6.9072,144.72,144.71,0.05019028]
[1749805668030,0.04827193,144.74,144.65,38.3915]
[1749805668235,36.18,144.73,144.65,36.18]
[1749805668434,4.411,144.72,144.62,36.18]
[1749805668638,6.9103,144.66,144.62,36.18]
[1749805668832,6.7565,144.72,144.62,36.18]
[1749805669133,6.9106,144.65,144.62,36.18]
[1749805669339,0.04414889,144.65,144.62,36.23224064]
[1749805670040,0.04414889,144.65,144.62,43.14394064]
[1749805670236,0.04414889,144.65,144.62,36.23224064]
[1749805670434,0.04414889,144.65,144.62,43.14394064]
[1749805670743,0.04414889,144.65,144.62,36.23224064]
[1749805671643,6.9114,144.64,144.62,36.23224064]
[1749805671831,6.9114,144.64,144.62,43.14414064]
[1749805672034,0.04414889,144.65,144.62,36.23224064]
[1749805672638,0.04414889,144.65,144.62,43.14404064]
[1749805673546,0.04414889,144.65,144.62,36.23224064]
[1749805674844,6.9113,144.64,144.62,43.14404064]
[1749805675344,6.9113,144.64,144.62,36.23224064]
[1749805676042,6.9115,144.63,144.62,36.23224064]
[1749805676244,0.04414889,144.65,144.62,36.23224064]
[1749805677737,6.9115,144.63,144.62,36.23224064]
[1749805678138,0.04414889,144.65,144.62,36.23224064]
[1749805678342,6.9113,144.64,144.62,43.14424064]
[1749805679139,6.9113,144.64,144.62,36.23224064]
[1749805680238,0.04414889,144.65,144.62,36.23224064]
[1749805681547,6.9113,144.64,144.62,36.23224064]
[1749805681849,0.04414889,144.65,144.62,36.23224064]
[1749805682147,38.3728,144.72,144.63,136.44]
[1749805683252,0.05082177,144.69,144.66,0.04963527]
[1749805683842,0.05082177,144.69,144.66,6.95963527]
[1749805684042,0.05082177,144.69,144.66,43.13963527]
[1749805684542,6.95982177,144.69,144.66,43.13963527]
[1749805685248,6.95982177,144.69,144.66,50.04163527]
[1749805686247,0.05082177,144.69,144.66,43.13163527]
[1749805686647,6.907,144.73,144.67,4.6039]
[1749805686855,2.3428,144.77,144.67,4.6039]
[1749805687454,6.9082,144.7,144.67,11.5133]
[1749805687649,0.04485685,144.7,144.67,4.6562]
[1749805687849,0.04485685,144.7,144.68,6.909]
[1749805688745,0.04485685,144.7,144.67,4.6562]
[1749805688746,0.04485685,144.7,144.69,6.9087]
[1749805688952,2.3428,144.77,144.67,4.6562]
[1749805689150,2.3428,144.77,144.67,4.6039]
[1749805689351,6.9065,144.74,144.67,4.6039]
[1749805689546,2.3428,144.77,144.67,4.6039]
[1749805689750,6.9071,144.73,144.7,6.9079]
[1749805689950,6.9071,144.73,144.71,36.18]
[1749805689951,0.04583127,144.73,144.71,36.18]
[1749805690346,6.9072,144.72,144.71,36.18]
[1749805690952,6.9077,144.71,144.7,0.05283781]
[1749805693055,6.9077,144.71,144.7,3.781e-05]
[1749805700355,6.9114,144.64,144.62,38.3949]
[1749805700663,43.0677,144.71,144.62,38.3949]
[1749805700861,19.22942996,144.7,144.62,38.3949]
[1749805701059,16.0365,144.7,144.62,38.3949]
[1749805701256,5.41281121,144.69,144.62,36.16]
[1749805701459,0.05186568,144.67,144.65,0.04543209]
[1749805701763,6.9101,144.66,144.65,0.04543209]
[1749805702163,0.05186568,144.67,144.65,0.04543209]
[1749805702359,6.96166568,144.67,144.65,0.04543209]
[1749805702566,0.05186568,144.67,144.65,6.95573209]
[1749805703059,49.973,144.74,144.67,6.9096]
[1749805703263,5.41535416,144.73,144.67,6.9096]
[1749805703466,5.41535416,144.73,144.66,36.16]
[1749805704068,0.04365077,144.71,144.68,0.04496674]
[1749805704661,0.04365077,144.71,144.69,6.9084]
[1749805705266,6.9069,144.73,144.7,43.0682]
[1749805705469,6.9069,144.73,144.7,49.9702]
[1749805706372,6.95525304,144.73,144.7,50.01370551]
[1749805707366,6.9073,144.72,144.7,43.10550551]
[1749805707568,0.04835304,144.73,144.7,43.10550551]
[1749805708074,6.9075,144.72,144.7,43.10550551]
[1749805708581,0.04835304,144.73,144.7,36.20350551]
[1749805709081,6.95545304,144.73,144.7,43.11150551]